bitfinex/quotes_BTCUSD_20240712
["timestamp","ask_amount","ask_price","bid_price","bid_amount"]
[1720742939102,0.2028,57445.0,57441.0,0.009108]
[1720742939310,0.2028,57445.0,57444.0,0.08511435]
[1720742939764,0.2028,57445.0,57441.0,0.009108]
[1720742939765,0.376879,57445.0,57441.0,0.009108]
[1720742940003,0.04433528,57442.0,57441.0,0.009108]
[1720742940217,0.2028,57442.0,57441.0,0.009108]
[1720742940445,0.2693,57449.0,57443.0,0.06366677]
[1720742940446,0.0665,57449.0,57443.0,0.06366677]
[1720742940674,0.2028,57448.0,57446.0,0.06366677]
[1720742940890,0.2028,57448.0,57447.0,0.00306353]
[1720742941110,0.24713528,57448.0,57447.0,0.00306353]
[1720742941309,0.30833528,57448.0,57447.0,0.00306353]
[1720742941590,0.0612,57448.0,57441.0,0.009108]
[1720742941743,0.2028,57442.0,57441.0,0.009108]
[1720742942151,0.24713528,57442.0,57441.0,0.009108]
[1720742942426,0.2028,57442.0,57441.0,0.009108]
[1720742943002,0.24713528,57442.0,57441.0,0.009108]
[1720742943204,0.31363528,57442.0,57441.0,0.009108]
[1720742943442,0.31463528,57442.0,57441.0,0.009108]
[1720742943755,0.31463528,57442.0,57424.0,0.2]
[1720742943756,0.10753528,57433.0,57424.0,0.2]
[1720742943936,0.24713528,57425.0,57421.0,0.58956411]
[1720742944174,0.04433528,57424.0,57421.0,0.006308]
[1720742944767,0.04433528,57422.0,57421.0,0.006308]
[1720742945007,0.04433528,57418.0,57416.0,0.009097]
[1720742945201,0.24713528,57417.0,57416.0,0.009097]
[1720742945605,0.2028,57417.0,57416.0,0.009097]
[1720742946582,0.2028,57417.0,57416.0,0.010097]
[1720742946583,0.255,57417.0,57416.0,0.010097]
[1720742948770,0.256,57417.0,57416.0,0.010097]
[1720742949482,0.00041163,57419.0,57416.0,0.010097]
[1720742949661,0.00041163,57419.0,57417.0,0.00306353]
[1720742949871,0.254,57418.0,57417.0,0.00306353]
[1720742950097,0.254,57425.0,57421.0,0.2]
[1720742950519,0.254,57425.0,57418.0,0.00306353]
[1720742950520,0.29833528,57425.0,57418.0,0.00306353]
[1720742950722,0.04433528,57421.0,57418.0,0.00306353]
[1720742950855,0.001,57419.0,57417.0,0.00306353]
[1720742951060,0.254,57418.0,57417.0,0.00306353]
[1720742951377,0.254,57418.0,57417.0,0.001]
[1720742951952,0.29833528,57418.0,57417.0,0.001]
[1720742952309,0.29833528,57418.0,57416.0,0.010097]
[1720742952310,0.04433528,57417.0,57416.0,0.009097]
[1720742952584,0.21849928,57417.0,57416.0,0.009097]
[1720742952786,0.04433528,57417.0,57416.0,0.009097]
[1720742953795,0.04533528,57417.0,57416.0,0.012097]
[1720742954212,0.04433528,57417.0,57416.0,0.009097]
[1720742955069,0.21849928,57417.0,57416.0,0.009097]
[1720742955211,0.04433528,57417.0,57416.0,0.009097]
[1720742955664,0.21849928,57417.0,57416.0,0.009097]
[1720742955898,0.21949928,57417.0,57416.0,0.010097]
[1720742956436,0.22049928,57417.0,57416.0,0.012097]
[1720742956840,0.28434138,57417.0,57416.0,0.012097]
[1720742957039,0.48434138,57417.0,57416.0,0.012097]
[1720742957260,0.11017738,57417.0,57416.0,0.012097]
[1720742960452,0.04397738,57417.0,57416.0,0.012097]
[1720742960650,0.23720608,57417.0,57416.0,0.012097]
[1720742960842,0.04397738,57417.0,57416.0,0.012097]
[1720742961775,0.29880608,57417.0,57416.0,0.012097]
[1720742962759,0.49880608,57417.0,57416.0,0.012097]
[1720742963166,0.04397738,57411.0,57407.0,0.08511435]
[1720742963364,0.2548287,57417.0,57407.0,0.08511435]
[1720742963365,0.29797738,57408.0,57407.0,0.08511435]
[1720742964905,0.29797738,57408.0,57407.0,0.08711435]
[1720742965454,0.29797738,57408.0,57407.0,0.09011435]
[1720742966064,0.29797738,57408.0,57407.0,0.08811435]
[1720742966496,0.29897738,57408.0,57407.0,0.08911435]
[1720742966665,0.29797738,57408.0,57407.0,0.08811435]
[1720742967078,0.29797738,57408.0,57407.0,0.003]
[1720742967079,0.35947738,57408.0,57407.0,0.003]
[1720742967580,0.04366708,57406.0,57404.0,0.025]
[1720742967850,0.3155,57408.0,57404.0,0.025]
[1720742967851,0.35916708,57408.0,57404.0,0.025]
[1720742968052,0.35916708,57408.0,57407.0,0.08511435]
[1720742968435,0.35816708,57408.0,57407.0,0.08511435]
[1720742968635,0.30736708,57408.0,57407.0,0.08511435]
[1720742968835,0.30836708,57408.0,57407.0,0.08511435]
[1720742969081,0.2042,57408.0,57407.0,0.08511435]
[1720742969482,0.2042,57408.0,57407.0,0.16771435]
[1720742969685,0.2042,57408.0,57407.0,0.17077788]
[1720742970227,0.21660275,57408.0,57407.0,0.17177788]
[1720742970355,0.21460275,57408.0,57407.0,0.16771435]
[1720742970807,0.21660275,57408.0,57407.0,0.16971435]
[1720742972254,0.21660275,57408.0,57404.0,0.025]
[1720742972255,0.04366708,57405.0,57404.0,0.025]
[1720742972462,0.04366708,57393.0,57391.0,0.0788]
[1720742972666,0.1,57403.0,57387.0,0.08511435]
[1720742972667,0.04366708,57389.0,57387.0,0.08511435]
[1720742972896,0.2032,57389.0,57387.0,0.08511435]
[1720742973527,0.04366708,57386.0,57381.0,0.08511435]
[1720742973732,0.04366708,57386.0,57382.0,0.14480594]
[1720742974049,0.04366708,57386.0,57383.0,0.14480594]
[1720742974223,0.04366708,57383.0,57381.0,0.08511435]
[1720742974964,0.2032,57384.0,57381.0,0.28511435]
[1720742975239,0.2032,57384.0,57381.0,0.34944932]
[1720742975439,0.1,57394.0,57386.0,0.06433497]
[1720742975440,0.00306353,57393.0,57386.0,0.06433497]
[1720742975598,0.00306353,57393.0,57381.0,0.35644932]
[1720742975599,0.2032,57389.0,57381.0,0.35644932]
[1720742975802,0.2032,57389.0,57383.0,0.23860197]
[1720742976026,0.2032,57389.0,57385.0,0.06433497]
[1720742976353,0.2032,57389.0,57388.0,0.13943497]
[1720742976565,0.2032,57389.0,57388.0,0.20233497]
[1720742977343,0.2042,57389.0,57388.0,0.20233497]
[1720742977697,0.2032,57389.0,57388.0,0.20233497]
[1720742977902,0.2032,57389.0,57388.0,0.37658697]
[1720742978129,0.2042,57389.0,57388.0,0.37658697]
[1720742978566,0.2042,57389.0,57388.0,0.20233497]
[1720742979105,0.2042,57389.0,57388.0,1.16570932]
[1720742979106,0.002,57389.0,57388.0,1.16570932]
[1720742979361,0.2032,57395.0,57392.0,0.06433497]
[1720742979536,0.2032,57395.0,57394.0,0.08511435]
[1720742980781,0.2042,57395.0,57394.0,0.08511435]
[1720742981206,0.2042,57395.0,57392.0,0.007]
[1720742981207,0.04366708,57393.0,57392.0,0.007]
[1720742981415,0.2032,57393.0,57392.0,0.007]
[1720742981815,0.2032,57393.0,57388.0,0.08511435]
[1720742982302,0.24686708,57393.0,57388.0,0.08511435]
[1720742982575,0.04366708,57389.0,57388.0,0.08511435]
[1720742983275,0.01756393,57393.0,57388.0,0.08511435]
[1720742983417,0.00306353,57392.0,57389.0,0.05188413]
[1720742983613,0.01856393,57393.0,57392.0,0.008]
[1720742984017,0.01856393,57393.0,57389.0,0.05196573]
[1720742984018,0.01756393,57393.0,57389.0,0.05196573]
[1720742984217,0.01856393,57393.0,57388.0,0.14508008]
[1720742984427,0.001,57389.0,57388.0,0.10111435]
[1720742984794,0.01756393,57393.0,57388.0,0.08511435]
[1720742985193,0.21956393,57393.0,57392.0,0.016]
[1720742985368,0.21956393,57393.0,57385.0,0.05196573]
[1720742985369,0.174241,57392.0,57385.0,0.05196573]
[1720742985530,0.2032,57386.0,57381.0,0.08511435]
[1720742985730,0.0636,57385.0,57381.0,0.08511435]
[1720742986159,0.2032,57386.0,57381.0,0.08511435]
[1720742988065,0.001,57385.0,57381.0,0.08511435]
[1720742988295,0.001,57385.0,57381.0,0.09911435]
[1720742988936,0.2042,57386.0,57381.0,0.09911435]
[1720742989557,0.2052,57386.0,57381.0,0.09911435]
[1720742989756,0.2042,57386.0,57381.0,0.08511435]
[1720742990386,0.2042,57386.0,57375.0,0.28511435]
[1720742990387,0.2042,57386.0,57375.0,0.08511435]
[1720742990587,0.2032,57379.0,57375.0,0.08511435]
[1720742991430,0.2032,57379.0,57373.0,0.0776]
[1720742991639,0.0663,57378.0,57375.0,0.08511435]
[1720742991826,0.2032,57376.0,57375.0,0.08511435]
[1720742993757,0.2032,57376.0,57375.0,0.08381435]
[1720742994911,0.2042,57376.0,57375.0,0.08381435]
[1720742995060,0.2052,57376.0,57375.0,0.08381435]
[1720742996252,0.2052,57376.0,57369.0,0.08511435]
[1720742996453,0.2032,57371.0,57369.0,0.08511435]
[1720742997875,0.2042,57371.0,57369.0,0.08511435]
[1720742998728,0.2042,57371.0,57363.0,0.17003335]
[1720742999212,0.0644,57370.0,57363.0,0.17003335]
[1720742999380,0.2032,57366.0,57363.0,0.17003335]
[1720742999591,0.2032,57366.0,57364.0,0.10800205]
[1720743000009,0.2032,57366.0,57363.0,0.17003335]
[1720743000888,0.2032,57366.0,57363.0,0.2780354]
[1720743001087,0.2032,57366.0,57364.0,0.10800205]
[1720743001256,0.2032,57366.0,57363.0,0.17003335]
[1720743001257,0.2032,57366.0,57365.0,0.10800205]
[1720743001661,0.2032,57366.0,57363.0,0.34436135]
[1720743001662,0.2032,57366.0,57363.0,0.2780354]
[1720743001866,0.2032,57366.0,57363.0,0.17003335]
[1720743001867,0.2042,57366.0,57363.0,0.17003335]
[1720743002408,0.0614,57376.0,57363.0,0.17003335]
[1720743002409,0.001,57370.0,57365.0,0.2]
[1720743002728,0.001,57366.0,57365.0,0.83096805]
[1720743002904,0.001,57366.0,57365.0,0.2645]
[1720743003082,0.001,57366.0,57363.0,0.17003335]
[1720743003283,0.002,57366.0,57364.0,0.10800205]
[1720743003489,0.002,57366.0,57365.0,0.28232405]
[1720743003816,0.002,57366.0,57365.0,1.12141205]
[1720743003988,0.002,57366.0,57365.0,0.42412405]
[1720743004191,0.002,57366.0,57365.0,0.316122]
[1720743004396,0.001,57366.0,57365.0,0.42412405]
[1720743004608,0.2032,57374.0,57370.0,0.2]
[1720743004810,0.2032,57374.0,57373.0,0.0826]
[1720743005007,0.01143857,57376.0,57373.0,0.0826]
[1720743005212,0.2032,57379.0,57373.0,0.0826]
[1720743005854,0.2032,57379.0,57374.0,0.08511435]
[1720743006444,0.001,57376.0,57374.0,0.08511435]
[1720743007020,0.001,57376.0,57375.0,0.2]
[1720743007424,0.001,57376.0,57375.0,0.2634]
[1720743007609,0.001,57376.0,57375.0,0.37140205]
[1720743007807,0.001,57376.0,57375.0,0.54569305]
[1720743008044,0.1,57383.0,57375.0,0.37140205]
[1720743008216,0.01086226,57382.0,57375.0,0.37140205]
[1720743008625,0.01086226,57382.0,57375.0,0.2634]
[1720743008832,0.2032,57379.0,57375.0,0.37140205]
[1720743008983,0.2032,57379.0,57375.0,0.204]
[1720743008984,0.001,57376.0,57375.0,0.204]
[1720743009195,0.001,57376.0,57375.0,0.31200205]
[1720743009394,0.2032,57379.0,57375.0,0.30800205]
[1720743009793,0.2032,57379.0,57375.0,0.31200205]
[1720743010293,0.2032,57379.0,57375.0,0.004]
[1720743010497,0.01216256,57378.0,57375.0,0.004]
[1720743010702,0.001,57376.0,57375.0,0.004]
[1720743010904,0.18209127,57376.0,57375.0,0.004]
[1720743011201,0.21499048,57376.0,57363.0,0.16963335]
[1720743011401,0.0619,57368.0,57363.0,0.16963335]
[1720743011603,0.01086257,57367.0,57363.0,0.16963335]
[1720743012031,0.2032,57369.0,57364.0,0.10800205]
[1720743012217,0.01086439,57368.0,57363.0,0.2776354]
[1720743012606,0.01086439,57368.0,57365.0,0.008]
[1720743012803,0.01086439,57368.0,57365.0,0.10800205]
[1720743013003,0.00306353,57376.0,57371.0,0.10800205]
[1720743013212,0.01172102,57376.0,57375.0,0.1931164]
[1720743013468,0.01086308,57376.0,57375.0,0.1931164]
[1720743013616,0.01186308,57376.0,57375.0,0.1931164]
[1720743014247,0.01086308,57376.0,57375.0,0.1931164]
[1720743014443,0.01086308,57376.0,57375.0,0.08511435]
[1720743014690,0.01186308,57376.0,57375.0,0.08511435]
[1720743015414,0.01186301,57376.0,57375.0,0.08511435]
[1720743015860,0.01186305,57376.0,57375.0,0.08511435]
[1720743017001,0.01286305,57376.0,57375.0,0.1931164]
[1720743017405,0.002,57376.0,57375.0,1.2052734]
[1720743018420,0.001,57376.0,57375.0,1.3755021]
[1720743018624,0.001,57376.0,57375.0,1.7240851]
[1720743018836,0.2032,57391.0,57388.0,0.0824]
[1720743019057,0.01086012,57390.0,57388.0,0.0824]
[1720743020553,0.01186012,57390.0,57388.0,0.0854]
[1720743020749,0.01086012,57389.0,57388.0,0.0854]
[1720743020949,0.01086012,57389.0,57388.0,0.19340205]
[1720743021306,0.001,57390.0,57389.0,0.28225105]
[1720743021509,0.001,57390.0,57389.0,1.06014705]
[1720743021709,0.001,57390.0,57389.0,1.12574705]
[1720743021710,0.002,57390.0,57389.0,1.12574705]
[1720743021917,0.002,57390.0,57389.0,1.29597575]
[1720743022116,0.001,57390.0,57389.0,1.29597575]
[1720743022545,0.001,57390.0,57389.0,1.30597575]
[1720743022546,0.002,57390.0,57389.0,1.30597575]
[1720743022749,0.001,57390.0,57389.0,1.30597575]
[1720743023315,0.001,57390.0,57389.0,0.95747775]
[1720743023722,0.001,57390.0,57389.0,0.27850205]
[1720743023922,0.001,57390.0,57389.0,0.21290205]
[1720743024126,0.2032,57396.0,57391.0,0.10800205]
[1720743024350,0.001,57390.0,57389.0,0.019]
[1720743025369,0.2042,57390.0,57389.0,0.019]
[1720743025589,0.3734287,57390.0,57389.0,0.014]
[1720743025770,0.38428909,57390.0,57389.0,0.014]
[1720743026568,0.38428909,57390.0,57385.0,0.2]
[1720743026783,0.01392392,57389.0,57382.0,0.10800205]
[1720743027117,0.01086039,57388.0,57381.0,0.08511435]
[1720743027321,0.297235,57394.0,57381.0,0.08511435]
[1720743027322,0.2032,57384.0,57381.0,0.08511435]
[1720743028694,0.2032,57384.0,57382.0,0.30800205]
[1720743028898,0.2032,57384.0,57383.0,0.11106558]
[1720743028899,0.001,57384.0,57383.0,0.11106558]
[1720743029924,0.001,57384.0,57383.0,0.00306353]
[1720743030277,0.001,57384.0,57382.0,0.221]
[1720743030521,0.001,57384.0,57382.0,0.2]
[1720743030843,0.001,57384.0,57383.0,0.0022848]
[1720743031141,0.001,57384.0,57383.0,0.36475385]
[1720743031316,0.2032,57389.0,57383.0,0.17648685]
[1720743031523,0.2032,57389.0,57387.0,0.08511435]
[1720743031723,0.2032,57389.0,57388.0,0.00306353]
[1720743032103,0.2032,57389.0,57388.0,0.11106558]
[1720743032104,0.21476896,57389.0,57388.0,0.11106558]
[1720743032317,0.2032,57395.0,57393.0,0.10800205]
[1720743032516,0.2032,57395.0,57394.0,0.08511435]
[1720743033498,0.01200334,57399.0,57396.0,0.10800205]
[1720743033916,0.01200334,57399.0,57397.0,0.10800205]
[1720743034128,0.00083,57399.0,57397.0,0.10800205]
[1720743034326,0.00083,57399.0,57395.0,0.25393]
[1720743034327,0.00083,57399.0,57395.0,0.18770205]
[1720743034527,0.00083,57399.0,57396.0,0.10800205]
[1720743035721,0.00083,57399.0,57396.0,0.11300205]
[1720743036140,0.00083,57399.0,57397.0,0.10800205]
[1720743036337,0.00083,57399.0,57398.0,0.10800205]
[1720743036798,0.00942025,57406.0,57396.0,0.11900205]
[1720743037002,0.2032,57405.0,57397.0,0.00306353]
[1720743037195,0.01085778,57404.0,57397.0,0.00306353]
[1720743037511,0.01085778,57404.0,57397.0,0.00906353]
[1720743037512,0.18108648,57404.0,57397.0,0.00906353]
[1720743037651,0.2032,57400.0,57397.0,0.006]
[1720743038014,0.01085838,57399.0,57397.0,0.006]
[1720743038202,0.01085838,57399.0,57394.0,0.08511435]
[1720743038386,0.2032,57400.0,57394.0,0.08511435]
[1720743038590,0.01085846,57399.0,57397.0,0.005]
[1720743039169,0.01085846,57399.0,57394.0,0.08511435]
[1720743039378,0.01085846,57399.0,57394.0,0.09011435]
[1720743039783,0.2303287,57398.0,57394.0,0.005]
[1720743039986,0.2032,57395.0,57388.0,0.08511435]
[1720743040209,0.01085846,57394.0,57388.0,0.08511435]
[1720743041988,0.2032,57389.0,57381.0,0.081]
[1720743042277,0.2032,57383.0,57381.0,0.081]
[1720743042655,0.01086125,57382.0,57377.0,0.0755]
[1720743043166,0.2032,57383.0,57377.0,0.0755]
[1720743043332,0.01086174,57382.0,57377.0,0.0755]
[1720743043736,0.01086174,57382.0,57381.0,0.014]
[1720743044142,0.01186174,57382.0,57377.0,0.0845]
[1720743044321,0.01186174,57382.0,57377.0,0.0985]
[1720743044322,0.01086174,57381.0,57377.0,0.0985]
[1720743044744,0.01086174,57381.0,57377.0,0.0845]
[1720743044953,0.001,57382.0,57378.0,0.10800205]
[1720743045150,0.01085859,57381.0,57378.0,0.10800205]
[1720743045351,0.001,57382.0,57377.0,0.19250205]
[1720743045550,0.2032,57383.0,57377.0,0.0755]
[1720743045725,0.01085613,57382.0,57377.0,0.0755]
[1720743045925,0.01185613,57382.0,57381.0,0.009]
[1720743046384,0.01185613,57382.0,57381.0,0.023]
[1720743046607,0.01085613,57382.0,57381.0,0.014]
[1720743046760,0.01085613,57382.0,57375.0,0.08511435]
[1720743046935,0.01085613,57382.0,57377.0,0.023]
[1720743047123,0.0611,57381.0,57377.0,0.023]
[1720743047317,0.01085613,57380.0,57375.0,0.08511435]
[1720743048168,0.0611,57381.0,57375.0,0.08511435]
[1720743048386,0.01085702,57380.0,57375.0,0.08511435]
[1720743048937,0.174284,57378.0,57372.0,0.0829]
[1720743049142,0.174284,57378.0,57369.0,0.08511435]
[1720743049143,0.24796456,57377.0,57369.0,0.08511435]
[1720743049390,0.01085702,57376.0,57369.0,0.08511435]
[1720743050192,0.01085702,57376.0,57375.0,0.009]
[1720743050575,0.04477274,57376.0,57375.0,0.009]
[1720743050835,0.04477274,57376.0,57372.0,0.008]
[1720743051035,0.01085702,57375.0,57369.0,0.08511435]
[1720743051235,0.01085702,57374.0,57369.0,0.09411435]
[1720743051393,0.01085702,57373.0,57369.0,0.09411435]
[1720743051602,0.01085323,57372.0,57370.0,0.2]
[1720743051780,0.3734287,57377.0,57369.0,0.09411435]
[1720743051781,0.01085323,57371.0,57369.0,0.09411435]
[1720743051982,0.3734287,57377.0,57369.0,0.09411435]
[1720743052185,0.01085356,57376.0,57369.0,0.09411435]
[1720743052391,0.01185356,57376.0,57369.0,0.10111435]
[1720743052743,0.01085356,57375.0,57369.0,0.10111435]
[1720743053040,0.01085356,57375.0,57369.0,0.08511435]
[1720743053258,0.3744287,57377.0,57375.0,0.009]
[1720743053463,0.01085295,57376.0,57375.0,0.009]
[1720743053666,0.01085295,57376.0,57369.0,0.09211435]
[1720743053876,0.01085295,57376.0,57369.0,0.09511435]
[1720743054288,0.001,57375.0,57369.0,0.09211435]
[1720743054498,0.2032,57372.0,57369.0,0.007]
[1720743054730,0.2032,57372.0,57369.0,0.09211435]
[1720743054731,0.01085295,57371.0,57369.0,0.09211435]
[1720743054937,0.2032,57372.0,57369.0,0.09211435]
[1720743055138,0.01085103,57371.0,57369.0,0.09211435]
[1720743055338,0.2032,57372.0,57369.0,0.09211435]
[1720743055478,0.01084887,57371.0,57369.0,0.007]
[1720743055676,0.01084887,57371.0,57364.0,0.079]
[1720743056177,0.01084887,57371.0,57369.0,0.008]
[1720743056544,0.01084887,57371.0,57369.0,0.018]
[1720743056965,0.01084887,57371.0,57369.0,0.008]
[1720743057169,0.01084887,57371.0,57364.0,0.079]
[1720743057372,0.01084887,57371.0,57364.0,0.093]
[1720743057573,0.01184887,57371.0,57364.0,0.087]
[1720743057813,0.01084887,57370.0,57364.0,0.087]
[1720743058018,0.174291,57375.0,57364.0,0.087]
[1720743058019,0.174291,57375.0,57369.0,0.014]
[1720743058152,0.2032,57370.0,57369.0,0.014]
[1720743058382,0.21405327,57370.0,57369.0,0.014]
[1720743058587,0.27785327,57370.0,57369.0,0.014]
[1720743058995,1.29400297,57370.0,57369.0,0.014]
[1720743059413,0.174317,57367.0,57363.0,0.009119]
[1720743059618,0.11085327,57366.0,57364.0,0.006]
[1720743059824,0.21405327,57365.0,57364.0,0.02]
[1720743059984,0.21405327,57365.0,57364.0,0.014]
[1720743060183,0.38428197,57365.0,57363.0,0.009119]
[1720743060432,0.03385327,57364.0,57363.0,0.009119]
[1720743060816,0.20817827,57364.0,57363.0,0.009119]
[1720743061020,0.197325,57364.0,57363.0,0.009119]
[1720743061219,0.20817478,57364.0,57363.0,0.009119]
[1720743061486,0.03384978,57364.0,57363.0,0.009119]
[1720743061689,0.01084978,57364.0,57363.0,0.009119]
[1720743062160,0.01084978,57364.0,57363.0,0.09423335]
[1720743062367,0.2032,57365.0,57363.0,0.09423335]
[1720743062595,0.2042,57365.0,57364.0,0.006]
[1720743062709,0.21504948,57365.0,57364.0,0.006]
[1720743063114,0.21404948,57365.0,57363.0,0.10323335]
[1720743063352,0.2032,57365.0,57364.0,0.00306353]
[1720743063775,0.21404911,57365.0,57363.0,0.10723335]
[1720743064150,0.21486354,57365.0,57363.0,0.10123335]
[1720743064400,0.01166354,57365.0,57363.0,0.10123335]
[1720743064609,0.01266354,57365.0,57364.0,0.00306353]
[1720743064758,0.001,57365.0,57364.0,0.00306353]
[1720743065945,0.01128944,57366.0,57364.0,0.00306353]
[1720743066146,0.1,57369.0,57364.0,0.00906353]
[1720743066352,0.001,57365.0,57364.0,0.01406353]
[1720743066576,0.2042,57365.0,57364.0,0.011]
[1720743066735,0.2042,57365.0,57364.0,0.006]
[1720743066736,0.21404404,57365.0,57364.0,0.006]
[1720743067186,0.21404404,57365.0,57363.0,0.009119]
[1720743067187,0.2032,57365.0,57363.0,0.009119]
[1720743067360,0.2032,57365.0,57364.0,0.001]
[1720743067562,0.21404016,57365.0,57364.0,0.001]
[1720743067767,0.21404016,57365.0,57364.0,0.004]
[1720743068188,0.21404016,57365.0,57364.0,0.01]
[1720743070042,0.21404016,57365.0,57364.0,0.006]
[1720743070512,0.21404016,57365.0,57364.0,0.011]
[1720743070513,0.21504016,57365.0,57364.0,0.011]
[1720743070936,0.21504297,57365.0,57364.0,0.011]
[1720743071783,0.38527167,57365.0,57364.0,0.011]
[1720743071988,0.40827167,57365.0,57364.0,0.011]
[1720743073117,0.74579367,57365.0,57364.0,0.011]
[1720743073304,0.195,57360.0,57359.0,0.009108]
[1720743073553,1.20228367,57360.0,57359.0,0.009108]
[1720743073728,1.42528367,57360.0,57359.0,0.009108]
[1720743073882,1.45918176,57360.0,57359.0,0.009108]
[1720743074085,1.80785676,57360.0,57359.0,0.009108]
[1720743074289,0.195,57356.0,57345.0,0.08511435]
[1720743074495,0.195,57356.0,57337.0,0.10800205]
[1720743074496,0.1,57345.0,57336.0,0.486219]
[1720743074694,0.2032,57350.0,57335.0,0.0115744]
[1720743074695,0.2032,57337.0,57335.0,0.0115744]
[1720743074931,0.01083497,57336.0,57335.0,0.0115744]
[1720743075355,0.2032,57337.0,57335.0,0.0115744]
[1720743075832,0.3032,57343.0,57335.0,0.0115744]
[1720743076030,0.18106667,57342.0,57335.0,0.0115744]
[1720743076282,0.377608,57337.0,57335.0,0.0115744]
[1720743076519,0.023,57336.0,57335.0,0.0115744]
[1720743078118,0.3676387,57336.0,57335.0,0.0115744]
[1720743078320,1.15503782,57336.0,57335.0,0.0115744]
[1720743078551,0.80621782,57336.0,57335.0,0.0115744]
[1720743078957,0.81705775,57336.0,57335.0,0.0115744]
[1720743079159,0.80621782,57336.0,57335.0,0.0115744]
[1720743079366,0.90621782,57336.0,57335.0,0.0115744]
[1720743079570,1.25503782,57336.0,57335.0,0.0115744]
[1720743079781,2.13209522,57336.0,57335.0,0.0115744]
[1720743079993,2.14293431,57336.0,57335.0,0.0115744]
[1720743080198,0.295,57330.0,57329.0,0.009119]
[1720743080343,0.7314287,57330.0,57329.0,0.009119]
[1720743080550,0.8544287,57330.0,57329.0,0.009119]
[1720743081381,0.195,57323.0,57320.0,0.0057861]
[1720743081729,0.6914287,57323.0,57320.0,0.0057861]
[1720743081929,0.7914287,57323.0,57320.0,0.0057861]
[1720743082062,0.5964287,57323.0,57320.0,0.0057861]
[1720743082270,0.3032,57323.0,57320.0,0.0057861]
[1720743082938,0.2032,57335.0,57326.0,0.2]
[1720743083138,0.2032,57340.0,57338.0,0.08511435]
[1720743083344,0.1702287,57339.0,57338.0,0.08511435]
[1720743083760,0.2032,57345.0,57339.0,0.0869]
[1720743083962,0.0635,57352.0,57345.0,0.0619]
[1720743083963,0.2032,57350.0,57345.0,0.0619]
[1720743084160,0.2032,57350.0,57338.0,0.1931164]
[1720743084161,0.0635,57343.0,57334.0,0.08511435]
[1720743084416,0.1702287,57349.0,57335.0,0.0802]
[1720743084417,0.2032,57340.0,57335.0,0.0802]
[1720743084622,0.2052,57340.0,57339.0,0.005]
[1720743084827,0.002,57340.0,57339.0,0.25370205]
[1720743085027,0.002,57340.0,57339.0,0.1407]
[1720743085474,0.2032,57343.0,57339.0,0.1407]
[1720743085707,0.3734287,57343.0,57339.0,0.1407]
[1720743085920,0.3734287,57343.0,57340.0,0.08511435]
[1720743087011,0.3734287,57343.0,57339.0,0.002]
[1720743087012,0.2932287,57342.0,57339.0,0.002]
[1720743087454,0.4588,57340.0,57339.0,0.002]
[1720743087671,0.6290287,57340.0,57339.0,0.005]
[1720743087878,0.2,57334.0,57321.0,0.07836353]
[1720743088083,0.2032,57328.0,57324.0,0.08511435]
[1720743088308,0.1702287,57327.0,57324.0,0.08511435]
[1720743088506,0.1,57326.0,57324.0,0.08511435]
[1720743088752,0.2702287,57326.0,57324.0,0.08511435]
[1720743089163,0.2702287,57326.0,57324.0,0.10251656]
[1720743089596,0.2702287,57326.0,57324.0,0.10351656]
[1720743089797,0.1,57326.0,57324.0,0.10351656]
[1720743090006,0.1,57327.0,57324.0,0.10351656]
[1720743090178,0.1,57327.0,57324.0,0.10251656]
[1720743090567,0.195,57339.0,57326.0,0.005]
[1720743090568,0.2032,57333.0,57326.0,0.005]
[1720743090769,0.1,57335.0,57332.0,0.0823]
[1720743090968,0.2032,57334.0,57332.0,0.01740221]
[1720743091173,0.2032,57334.0,57331.0,0.08511435]
[1720743091350,0.1,57333.0,57331.0,0.08511435]
[1720743092158,0.1,57333.0,57332.0,0.00306353]
[1720743092474,0.1,57333.0,57332.0,0.00406353]
[1720743092787,0.106,57333.0,57332.0,0.001]
[1720743093190,0.007,57334.0,57332.0,0.1386]
[1720743093530,0.007,57334.0,57333.0,0.00306353]
[1720743093976,0.1,57341.0,57333.0,0.00306353]
[1720743093977,0.2032,57335.0,57333.0,0.00306353]
[1720743094384,0.1,57334.0,57333.0,0.00806353]
[1720743094586,0.3032,57341.0,57335.0,0.005]
[1720743094712,0.3032,57341.0,57340.0,0.08511435]
[1720743096036,0.0603,57354.0,57341.0,0.0601]
[1720743096037,0.1,57351.0,57341.0,0.0601]
[1720743096231,0.1702287,57350.0,57347.0,0.08511435]
[1720743096463,0.3032,57348.0,57347.0,0.01740221]
[1720743096588,0.3734287,57348.0,57347.0,0.01740221]
[1720743097385,0.4964287,57348.0,57347.0,0.01740221]
[1720743098032,0.8518287,57348.0,57347.0,0.01740221]
[1720743098236,0.1,57343.0,57334.0,0.08306353]
[1720743098435,0.2032,57341.0,57334.0,0.08306353]
[1720743098617,0.2702287,57340.0,57337.0,0.08511435]
[1720743099010,0.2702287,57340.0,57334.0,0.08]
[1720743099011,0.023,57339.0,57334.0,0.08]
[1720743099235,0.2032,57335.0,57334.0,0.08]
[1720743100380,0.2032,57335.0,57331.0,0.14991435]
[1720743100381,0.3734287,57335.0,57331.0,0.14991435]
[1720743100584,0.3734287,57335.0,57331.0,0.08511435]
[1720743100876,0.3352287,57334.0,57323.0,0.00306353]
[1720743101010,0.3352287,57334.0,57322.0,0.0067053]
[1720743101011,0.2032,57325.0,57322.0,0.0067053]
[1720743101416,0.2032,57325.0,57324.0,0.08511435]
[1720743102053,0.3032,57325.0,57322.0,0.0067053]
[1720743102258,0.1702287,57324.0,57322.0,0.0067053]
[1720743102470,0.1,57323.0,57322.0,0.0067053]
[1720743102672,0.2702287,57323.0,57322.0,0.0067053]
[1720743103074,0.2702287,57323.0,57322.0,0.0207053]
[1720743103596,0.2932287,57323.0,57322.0,0.0207053]
[1720743103826,0.30405267,57323.0,57322.0,0.0207053]
[1720743103998,0.82740267,57323.0,57322.0,0.0207053]
[1720743104633,0.82740267,57323.0,57322.0,0.0067053]